bitfinex-derivatives/quotes_SOLF0:USTF0_20241211
["timestamp","ask_amount","ask_price","bid_price","bid_amount"]
[1733951774426,49.39498089,228.86,228.77,6.44275695]
[1733951774427,47.98758089,228.86,228.77,6.44275695]
[1733951774727,8.56275695,228.85,228.79,6.44275695]
[1733951774927,8.56275695,228.85,228.81,2.1829]
[1733951775627,6.44275695,228.85,228.81,2.1829]
[1733951775820,8.56275695,228.85,228.81,8.2485124]
[1733951776219,10.74535695,228.85,228.81,2.1829]
[1733951776422,2.1826,228.85,228.82,4.73996939]
[1733951776628,2.1826,228.85,228.81,26.44534961]
[1733951776826,54.43033784,228.86,228.82,4.73946528]
[1733951777028,56.55033784,228.86,228.83,6.92193088]
[1733951777227,56.55033784,228.86,228.83,2.1827]
[1733951777827,50.10758089,228.86,228.82,24.26244961]
[1733951778028,8.62495695,228.88,228.84,2.1826]
[1733951778229,2.12,228.87,228.84,2.1826]
[1733951779532,4.3023,228.87,228.84,2.1826]
[1733951781331,2.1827,228.84,228.82,24.26244961]
[1733951781536,2.1827,228.84,228.81,6.0656124]
[1733951781734,2.1827,228.84,228.8,26.44544961]
[1733951781929,2.1827,228.84,228.81,4.73453584]
[1733951782132,2.1827,228.84,228.8,26.44544961]
[1733951782427,2.1827,228.84,228.8,8.2486124]
[1733951783527,2.1827,228.84,228.81,2.1829]
[1733951785335,2.1826,228.85,228.8,8.2486124]
[1733951785536,6.44275695,228.86,228.8,8.2486124]
[1733951786532,2.1827,228.84,228.8,8.2486124]
[1733951786835,6.44275695,228.86,228.8,8.2486124]
[1733951787534,6.44275695,228.84,228.8,8.2486124]
[1733951787728,2.1827,228.83,228.8,2.183]
[1733951794033,2.12,228.87,228.82,6.44275695]
[1733951794242,2.12,228.87,228.83,4.73307617]
[1733951794435,2.12,228.87,228.82,30.70520656]
[1733951794738,2.12,228.87,228.85,2.1824]
[1733951795237,2.12,228.87,228.84,2.1826]
[1733951796335,2.12,228.87,228.85,2.1825]
[1733951797335,10.74495695,228.88,228.85,2.1825]
[1733951797841,4.3021,228.89,228.86,2.1823]
[1733951800542,2.1821,228.89,228.86,2.1823]
[1733951800742,2.1819,228.92,228.89,2.1821]
[1733951800943,2.12,228.91,228.89,2.1821]
[1733951801746,8.62455695,228.93,228.89,2.1821]
[1733951801945,2.12,228.92,228.89,2.1821]
[1733951802347,2.12,228.92,228.9,2.1819]
[1733951802546,6.44275695,228.93,228.9,2.1819]
[1733951802547,8.56275695,228.93,228.9,2.1819]
[1733951802743,6.44275695,228.93,228.9,2.1819]
[1733951802947,8.56275695,228.93,228.9,2.1819]
[1733951803444,1.4263,229.05,228.92,6.44275695]
[1733951803445,1.3843,229.05,228.92,6.44275695]
[1733951803640,1.3843,229.05,229.01,6.44275695]
[1733951803841,1.3843,229.05,228.93,43.22557742]
[1733951803842,2.1809,229.02,228.93,7.47757209]
[1733951804046,2.1809,229.02,228.97,6.44275695]
[1733951804439,2.1809,229.02,228.98,2.1812]
[1733951806450,2.12,229.03,228.99,8.62385695]
[1733951806750,2.12,229.03,228.99,6.44275695]
[1733951807250,2.12,229.03,229.0,2.181]
[1733951816850,8.56275695,229.06,228.99,6.44275695]
[1733951817749,2.1806,229.05,229.01,2.1809]
[1733951819151,8.62335695,229.05,228.99,6.44275695]
[1733951819351,8.62335695,229.05,229.02,2.1809]
[1733951820350,6.44275695,229.05,228.93,1.4234]
[1733951820551,6.44275695,228.96,228.9,6.44275695]
[1733951820746,6.44275695,228.94,228.89,1.4027]
[1733951820946,6.44275695,228.92,228.88,6.05417209]
[1733951821147,6.44275695,228.9,228.88,2.1822]
[1733951821850,6.44275695,228.9,228.84,7.79185695]
[1733951822154,6.44275695,228.9,228.86,2.1823]
[1733951822356,8.56275695,228.9,228.86,2.1823]
[1733951824664,6.44275695,228.88,228.82,6.44275695]
[1733951825664,6.44275695,228.88,228.83,2.1827]
[1733951825865,6.44275695,228.86,228.8,6.03083311]
[1733951826165,6.44275695,228.86,228.79,6.44275695]
[1733951826561,8.62515695,228.86,228.81,2.1828]
[1733951827256,4.3025,228.85,228.81,2.1828]
[1733951829361,5.29888778,228.91,228.88,2.1821]
[1733951829562,2.1817,228.93,228.88,6.44275695]
[1733951830066,2.12,228.94,228.9,6.44275695]
[1733951830267,2.12,228.97,228.92,6.44275695]
[1733951830467,8.56275695,228.98,228.92,6.44275695]
[1733951830666,2.12,228.98,228.92,6.44275695]
[1733951831270,2.12,228.98,228.93,2.1816]
[1733951831466,2.12,228.98,228.92,6.44275695]
[1733951831864,7.36815286,228.98,228.94,2.1815]
[1733951832065,2.12,228.98,228.94,6.44275695]
[1733951833368,2.12,228.98,228.95,2.1815]
[1733951834669,2.12,228.98,228.97,2.1814]
[1733951840973,6.44275695,229.02,228.96,6.44275695]
[1733951841274,7.29241722,229.03,228.99,2.1812]
[1733951841572,2.12,229.04,229.01,2.181]
[1733951842275,4.3007,229.04,229.01,2.181]
[1733951842975,2.12,229.04,229.01,2.181]
[1733951845579,4.3007,229.04,229.01,2.181]
[1733951845874,2.12,229.04,229.02,2.1809]
[1733951847769,6.44275695,229.07,229.0,6.44275695]
[1733951848071,6.44275695,229.07,228.95,24.12333244]
[1733951848072,2.12,229.08,229.02,6.44275695]
[1733951848575,2.12,229.08,229.05,2.1805]
[1733951849473,2.1802,229.09,229.05,2.1805]
[1733951849670,4.3002,229.09,229.05,2.1805]
[1733951853277,2.1803,229.08,229.05,2.1805]
[1733951854676,6.44275695,229.06,228.98,8.56275695]
[1733951854877,6.44275695,229.04,228.96,1.3468]
[1733951855179,2.181,229.02,228.98,2.1812]
[1733951856074,2.181,229.02,228.96,7.78955695]
[1733951856075,2.181,229.02,228.99,2.1811]
[1733951856776,2.181,229.01,228.98,2.1812]
[1733951860876,6.44275695,229.02,228.96,6.44275695]
[1733951861082,8.62365695,229.02,228.99,2.1811]
[1733951864272,4.3008,229.03,229.0,2.181]
[1733951865484,8.62365695,229.02,228.99,2.1811]
[1733951869190,6.44275695,229.0,228.96,6.03083311]
[1733951869490,6.44275695,228.97,228.95,24.12333244]
[1733951869684,2.1815,228.95,228.94,6.03083311]
[1733951869990,8.62425695,228.95,228.92,26.30513244]
[1733951870189,8.62425695,228.95,228.92,8.21263311]
[1733951870688,6.44275695,228.95,228.93,6.91735138]
[1733951870988,6.44275695,228.95,228.93,8.21253311]
[1733951872293,6.44275695,228.95,228.93,2.1817]
[1733951872993,2.1815,228.96,228.93,2.1817]
[1733951873386,2.12,228.97,228.96,2.1814]
[1733951873791,2.12,228.97,228.93,24.12333244]
[1733951873988,6.44275695,228.96,228.94,2.1816]
[1733951881998,4.3014,228.97,228.94,2.1816]
[1733951882197,8.56275695,228.97,228.93,6.03083311]
[1733951882599,8.56275695,228.97,228.92,24.12333244]
[1733951882793,8.56275695,228.97,228.93,4.72943167]
[1733951882993,8.56275695,228.97,228.92,24.12333244]
[1733951883297,8.56275695,228.97,228.93,10.76026478]
[1733951883498,8.56275695,228.97,228.96,2.1814]
[1733951883700,2.12,228.97,228.96,2.1814]
[1733951884293,6.44275695,228.98,228.96,2.1814]
[1733951884496,8.62395695,228.99,228.95,2.1815]
[1733951884696,8.62395695,228.99,228.94,24.12333244]
[1733951884997,8.62395695,228.99,228.95,4.73014618]
[1733951885297,8.62395695,228.99,228.95,6.03083311]
[1733951885498,8.62395695,228.99,228.94,24.12333244]
[1733951885799,8.62395695,228.99,228.96,2.1814]
[1733951888192,8.62395695,228.99,228.95,24.12333244]
[1733951888397,6.44275695,228.99,228.96,10.766748]
[1733951888596,6.44275695,228.99,228.97,2.1813]
[1733951889193,2.1808,229.03,229.0,2.1811]
[1733951889496,2.12,229.03,228.99,24.12333244]
[1733951889703,2.12,229.03,229.0,4.73771126]
[1733951889896,2.12,229.03,228.99,24.12333244]
[1733951890098,2.12,229.03,229.0,4.7376999]
[1733951890303,2.12,229.03,229.01,6.9185999]
[1733951890500,2.12,229.03,229.01,2.1809]
[1733951890703,2.12,229.05,229.01,6.44275695]
[1733951891204,2.12,229.05,229.02,4.73762764]
[1733951891402,2.12,229.05,229.02,6.03083311]
[1733951892102,2.12,229.05,229.01,30.56608939]
[1733951892298,2.12,229.05,229.04,2.1807]
[1733951892801,2.12,229.05,229.03,2.1808]
[1733951894495,4.3006,229.05,229.02,2.1808]
[1733951895106,8.56275695,229.05,228.99,24.12333244]
[1733951895297,2.1808,229.04,229.01,2.181]
[1733951898905,2.1809,229.02,228.99,2.1811]
[1733951899305,2.1809,229.02,228.97,24.53525628]
[1733951899306,6.44275695,229.01,228.97,24.12333244]
[1733951899500,6.44275695,228.98,228.95,6.03083311]
[1733951899706,6.44275695,228.96,228.95,6.03083311]
[1733951899903,8.62415695,228.96,228.95,10.76392026]
[1733951900106,6.44275695,228.96,228.93,24.12333244]
[1733951900307,6.44275695,228.96,228.94,4.73323083]
[1733951900507,6.44275695,228.96,228.93,24.12333244]
[1733951900703,6.44275695,228.96,228.94,4.73320702]
[1733951900908,6.44275695,228.96,228.93,6.03083311]
[1733951901506,6.44275695,228.96,228.93,2.1817]
[1733951902412,6.44275695,228.96,228.93,8.21253311]
[1733951902609,6.44275695,228.96,228.93,2.1817]
[1733951902805,6.44275695,228.96,228.93,8.21253311]
[1733951906006,6.44275695,228.96,228.93,6.03083311]
[1733951906207,6.44275695,228.94,228.92,6.03083311]
[1733951906412,6.44275695,228.94,228.89,24.12333244]
[1733951906713,6.44275695,228.92,228.89,6.03083311]
[1733951907109,6.44275695,228.92,228.88,24.12333244]
[1733951907415,6.44275695,228.92,228.87,24.12333244]
[1733951907615,6.44275695,228.94,228.89,6.03083311]
[1733951907811,6.44275695,228.94,228.9,4.73228223]
[1733951908009,6.44275695,228.94,228.89,6.03083311]
[1733951908220,6.44275695,228.94,228.9,4.73139698]
[1733951908515,8.62445695,228.94,228.9,2.1819]
[1733951909013,6.44275695,228.92,228.87,6.03083311]
[1733951909314,6.44275695,228.89,228.86,6.03083311]
[1733951909517,6.44275695,228.87,228.86,6.03083311]
[1733951909814,6.44275695,228.87,228.83,6.03083311]
[1733951910218,6.44275695,228.87,228.83,2.1826]
[1733951910418,8.56275695,228.89,228.83,6.03083311]
[1733951910713,8.56275695,228.89,228.82,6.03083311]
[1733951911015,8.56275695,228.89,228.83,4.72771888]
[1733951911220,8.56275695,228.89,228.81,24.53525628]
[1733951911221,8.56275695,228.89,228.81,30.56608939]
[1733951911412,8.56275695,228.89,228.82,4.72502273]
[1733951911615,2.1822,228.88,228.84,2.1826]
[1733951912414,2.12,228.88,228.85,2.1825]
[1733951912617,2.12,228.88,228.83,30.56608939]
[1733951912809,2.12,228.88,228.84,4.72275829]
[1733951913014,2.12,228.88,228.83,30.56608939]
[1733951913317,2.12,228.88,228.83,6.44275695]
[1733951914320,2.12,228.88,228.86,2.1825]
[1733951916622,2.12,228.88,228.81,24.12333244]
[1733951916623,8.56275695,228.88,228.81,6.03083311]
[1733951916919,6.44275695,228.86,228.8,24.12333244]
[1733951917124,6.44275695,228.86,228.83,2.1828]
[1733951918824,6.44275695,228.86,228.84,2.1827]
[1733951921523,8.56275695,228.88,228.84,2.1827]
[1733951921724,6.44275695,228.9,228.83,6.44275695]
[1733951921921,2.182,228.93,228.87,6.44275695]
[1733951922121,2.12,228.92,228.87,6.44275695]
[1733951922322,2.12,228.92,228.9,2.1822]
[1733951925621,8.62465695,228.93,228.9,2.1822]
[1733951925823,2.12,228.92,228.9,2.1822]
[1733951926625,2.12,228.92,228.87,6.44275695]
[1733951926825,2.12,228.92,228.89,2.1822]
[1733951928628,6.44275695,228.91,228.89,2.1822]
[1733951929224,6.44275695,228.91,228.86,2.1825]
[1733951929423,6.44275695,228.89,228.86,2.1825]
[1733951929817,6.44275695,228.89,228.83,6.0402298]
[1733951929818,2.1825,228.87,228.83,8.2229298]
[1733951930020,6.44275695,228.87,228.83,2.1827]
[1733951930223,8.56275695,228.87,228.83,2.1827]
[1733951930626,10.74515695,228.87,228.84,2.1827]
[1733951931425,8.56275695,228.87,228.84,2.1827]
[1733951931626,8.56275695,228.87,228.85,2.1826]
[1733951932818,2.12,228.87,228.86,2.1826]
[1733951934235,2.12,228.87,228.86,6.91329021]
[1733951935235,2.12,228.87,228.86,2.1826]
[1733951935628,2.12,228.87,228.86,6.9142794]
[1733951938138,2.12,228.87,228.86,12.9545092]
[1733951938538,2.12,228.87,228.86,43.97386554]
[1733951938837,2.12,228.87,228.86,12.98464513]
[1733951939640,2.12,228.87,228.86,50.05047593]
[1733951940136,2.12,228.87,228.86,12.98464513]
[1733951940339,2.12,228.87,228.86,43.98624721]
[1733951941439,2.12,228.87,228.86,50.06305953]
[1733951942239,2.12,228.87,228.86,43.98624721]
[1733951942644,2.12,228.87,228.86,50.06367895]
[1733951942841,2.12,228.87,228.86,102.62906948]
[1733951943542,2.12,228.87,228.86,74.18739622]
[1733951943744,2.12,228.87,228.86,44.10083742]
[1733951943936,2.12,228.87,228.86,50.17937729]
[1733951944545,2.12,228.87,228.86,44.10083742]
[1733951944945,8.56275695,228.87,228.86,47.99700128]
[1733951945249,10.74525695,228.87,228.84,26.49684348]
[1733951945447,10.74525695,228.87,228.85,4.74174608]
[1733951945643,10.74525695,228.87,228.85,6.07876386]
[1733951946244,8.56275695,228.87,228.85,6.07876386]
[1733951946445,8.56275695,228.87,228.82,24.31404348]
[1733951946650,2.12,228.87,228.83,4.74118372]
[1733951946951,2.12,228.87,228.82,24.31404348]
[1733951947149,2.1828,228.85,228.83,4.74118737]
[1733951947345,2.12,228.87,228.82,24.31404348]
[1733951947552,2.12,228.87,228.83,4.74108396]
[1733951947848,6.44275695,228.84,228.82,6.07876386]
[1733951948044,6.44275695,228.84,228.83,4.74024496]
[1733951948450,6.44275695,228.84,228.82,6.07876386]
[1733951948650,6.44275695,228.84,228.83,4.73936997]
[1733951949249,6.44275695,228.84,228.82,6.07876386]
[1733951950541,2.12,228.87,228.82,6.07876386]
[1733951950542,6.44275695,228.86,228.83,4.73792879]
[1733951950747,6.44275695,228.86,228.83,2.1829]
[1733951952652,8.62535695,228.86,228.83,2.1829]
[1733951953754,2.1,228.87,228.84,4.73619726]
[1733951954050,2.1,228.87,228.83,24.31404348]
[1733951954255,2.1,228.87,228.84,4.73611539]
[1733951954552,2.1,228.87,228.83,6.07876386]
[1733951954752,2.1,228.87,228.84,4.73614996]
[1733951954952,2.1,228.87,228.83,6.07876386]
[1733951955148,4.2826,228.87,228.84,2.1828]
[1733951955452,6.44275695,228.86,228.82,6.07876386]
[1733951955648,2.183,228.83,228.81,6.07876386]
[1733951955848,6.44275695,228.84,228.81,6.07876386]
[1733951956046,6.44275695,228.84,228.79,24.31404348]
[1733951956246,6.44275695,228.84,228.79,6.07876386]
[1733951956450,2.1829,228.83,228.79,6.07876386]
[1733951956656,6.44275695,228.84,228.79,6.07876386]
[1733951956855,6.44275695,228.84,228.78,20.41857962]
[1733951956856,6.44275695,228.84,228.78,26.49734348]
[1733951957052,2.183,228.82,228.79,4.73531161]
[1733951957355,2.183,228.82,228.78,26.49734348]
[1733951957553,2.183,228.82,228.79,4.73531161]
[1733951957754,2.183,228.82,228.78,8.26206386]
[1733951957953,2.183,228.82,228.79,4.73446312]
[1733951958255,2.183,228.82,228.78,26.49734348]
[1733951958557,2.183,228.82,228.79,4.7347656]
[1733951958757,2.183,228.82,228.78,8.26206386]
[1733951958950,2.183,228.82,228.79,4.73399313]
[1733951959149,2.183,228.82,228.78,26.49734348]
[1733951959353,2.183,228.82,228.79,4.73436408]
[1733951959652,2.183,228.82,228.78,8.26206386]
[1733951959852,2.183,228.82,228.79,4.73375083]
[1733951960052,2.183,228.82,228.79,2.1833]
[1733951962057,2.1831,228.81,228.78,26.49744348]
[1733951962356,6.44275695,228.82,228.79,4.73458746]
[1733951962554,2.1,228.81,228.77,24.31404348]
[1733951962754,2.1,228.81,228.78,4.73416007]
[1733951962953,2.1,228.81,228.77,24.31404348]
[1733951963157,2.1833,228.8,228.78,10.81291201]
[1733951963349,2.1833,228.8,228.78,6.07876386]
[1733951963547,2.1,228.81,228.78,6.07876386]
[1733951963752,2.1832,228.8,228.78,6.07876386]
[1733951966960,2.1832,228.8,228.77,26.49744348]
[1733951967164,2.1832,228.8,228.78,4.73427711]
[1733951967460,2.1832,228.8,228.77,26.49744348]
[1733951967760,2.1832,228.8,228.78,4.73407615]
[1733951967954,2.1832,228.8,228.78,6.07876386]
[1733951968859,2.1832,228.8,228.77,24.31404348]
[1733951969060,2.1,228.81,228.79,2.1833]
[1733951969658,4.2831,228.81,228.79,2.1833]
[1733951970259,2.1,228.81,228.79,2.1833]
[1733951972257,4.2831,228.81,228.79,2.1833]
[1733951973864,4.2831,228.81,228.78,8.25476551]
[1733951974161,4.2831,228.81,228.79,4.73691824]
[1733951974363,4.2831,228.81,228.78,8.25476551]
[1733951974860,4.2831,228.81,228.79,4.73696943]
[1733951975056,4.2831,228.81,228.78,8.25476551]
[1733951975252,2.1832,228.8,228.79,4.73693364]
[1733951975456,2.1832,228.8,228.77,8.25476551]
[1733951975457,8.62595695,228.8,228.77,8.25476551]
[1733951975762,8.62595695,228.8,228.78,4.73691238]
[1733951976065,2.1833,228.79,228.77,6.07136551]
[1733951976459,6.44275695,228.8,228.77,6.07136551]
[1733951976655,8.62595695,228.8,228.77,6.07136551]
[1733951977361,2.1833,228.79,228.77,6.07136551]
[1733951977560,2.1833,228.79,228.76,78.77211204]
[1733951977856,6.44275695,228.8,228.77,4.73841433]
[1733951978059,6.44275695,228.78,228.76,52.30305]
[1733951978461,2.1835,228.77,228.76,52.30305]
[1733951980462,2.1835,228.77,228.76,45.68805]
[1733951999872,8.54275695,228.77,228.76,45.68805]
[1733952000569,6.44275695,228.77,228.76,45.68805]
[1733952000774,8.54275695,228.77,228.76,45.68805]
[1733952001974,10.72625695,228.77,228.76,45.68805]
[1733952002176,4.2835,228.77,228.76,45.68805]
[1733952002370,5.31577019,228.85,228.76,45.68805]
[1733952002576,2.1,228.84,228.76,45.68805]
[1733952002770,6.44275695,228.8,228.76,45.68805]
[1733952003172,8.54275695,228.8,228.78,2.1834]
[1733952004981,10.72595695,228.8,228.76,45.68805]
[1733952005178,10.72595695,228.8,228.77,2.1835]
[1733952006279,8.54275695,228.8,228.76,45.68805]
[1733952006580,6.44275695,228.78,228.76,45.68805]
[1733952007180,2.1835,228.77,228.76,45.68805]
[1733952010176,6.44275695,228.78,228.69,24.28546204]
[1733952010377,2.1841,228.71,228.7,4.7391375]
[1733952010583,2.1,228.71,228.68,6.07136551]
[1733952010779,2.1,228.71,228.67,24.28546204]
[1733952010980,2.1,228.71,228.68,4.74032304]
[1733952011178,2.1843,228.69,228.67,6.07136551]
[1733952011379,6.44275695,228.68,228.67,6.07136551]
[1733952011577,8.62705695,228.68,228.67,4.74051372]
[1733952011782,8.62705695,228.68,228.66,6.07136551]
[1733952011783,2.1843,228.68,228.66,6.07136551]
[1733952012281,6.44275695,228.67,228.64,24.28546204]
[1733952012475,6.44275695,228.65,228.63,24.28546204]
[1733952012776,8.54275695,228.65,228.64,4.7398116]
[1733952012972,10.72735695,228.65,228.64,4.7398116]
[1733952013173,10.72735695,228.65,228.61,6.07136551]
[1733952013174,8.54275695,228.65,228.61,6.07136551]
[1733952013483,8.62765695,228.62,228.61,6.07136551]
[1733952013678,8.62765695,228.62,228.61,10.80976379]
[1733952013873,8.62765695,228.62,228.61,4.73839828]
[1733952014182,8.62765695,228.62,228.6,7.41826551]
[1733952015075,6.44275695,228.62,228.59,24.28546204]
[1733952015377,2.185,228.61,228.6,4.73325382]
[1733952015782,2.185,228.61,228.58,24.28546204]
[1733952015975,2.185,228.61,228.59,4.73299691]
[1733952016178,2.185,228.61,228.58,6.07136551]
[1733952016784,2.185,228.61,228.59,4.73038632]
[1733952017084,2.185,228.61,228.58,24.28546204]
[1733952017273,2.185,228.61,228.59,4.72881771]
[1733952017473,2.185,228.61,228.58,6.07136551]
[1733952017676,2.185,228.61,228.59,4.72846702]
[1733952017878,2.185,228.61,228.58,6.07136551]
[1733952018083,2.185,228.61,228.59,4.72848004]
[1733952018285,2.185,228.61,228.58,6.07136551]
[1733952018684,2.1849,228.62,228.58,14.69932246]
[1733952018886,2.1,228.65,228.6,6.44275695]
[1733952019079,2.1,228.65,228.62,6.44275695]
[1733952019584,6.44275695,228.68,228.62,6.44275695]
[1733952019781,2.1,228.67,228.64,6.44275695]
[1733952020088,2.1,228.71,228.68,2.1843]
[1733952020288,10.72675695,228.72,228.68,2.1843]
[1733952021383,4.284,228.72,228.68,2.1843]
[1733952022187,10.72675695,228.72,228.68,2.1843]
[1733952022390,2.1842,228.7,228.66,2.1845]
[1733952022590,8.62695695,228.7,228.66,2.1845]
[1733952023789,6.44275695,228.7,228.65,1.3749]
[1733952023988,2.1842,228.69,228.65,3.5595]
[1733952024187,6.44275695,228.7,228.65,1.3749]
[1733952024385,6.44275695,228.68,228.63,2.8332]
[1733952024790,2.1,228.67,228.63,2.8332]
[1733952024990,4.2845,228.67,228.63,5.0179]
[1733952025191,4.2845,228.67,228.63,2.8332]
[1733952025392,2.1,228.67,228.63,2.8332]
[1733952026595,2.1,228.67,228.64,2.1847]
[1733952033301,8.62725695,228.66,228.63,5.018]
[1733952033798,8.62725695,228.66,228.63,2.1848]
[1733952034301,2.1847,228.65,228.62,2.1849]
[1733952035408,6.44275695,228.66,228.63,2.1848]
[1733952038395,2.1847,228.65,228.61,26.47036204]
[1733952038599,6.44275695,228.66,228.62,4.72928594]
[1733952038904,6.44275695,228.66,228.61,8.25626551]
[1733952039104,2.1846,228.65,228.62,4.73170642]
[1733952039304,2.1846,228.65,228.61,26.47036204]
[1733952039500,2.1846,228.65,228.62,4.73167048]
[1733952039702,2.1846,228.65,228.61,8.25626551]
[1733952039903,6.44275695,228.64,228.62,4.73173765]
[1733952040099,6.44275695,228.64,228.62,6.07136551]
[1733952040801,6.44275695,228.64,228.61,26.47036204]
[1733952041006,6.44275695,228.64,228.62,4.73447014]
[1733952041208,8.62745695,228.64,228.63,4.7378328]
[1733952042106,8.62745695,228.64,228.63,10.80919831]
[1733952042608,6.44275695,228.64,228.63,10.80919831]
[1733952043202,8.62745695,228.64,228.62,8.25626551]
[1733952043703,6.44275695,228.64,228.63,4.74083007]
[1733952045099,6.44275695,228.64,228.63,10.81219558]
[1733952046106,6.44275695,228.64,228.63,29.02629211]
[1733952046300,6.44275695,228.64,228.63,10.81219558]
[1733952048908,2.1,228.67,228.63,10.81219558]
[1733952049109,2.1,228.67,228.65,2.1846]
[1733952049710,6.44275695,228.66,228.65,2.1846]
[1733952049911,6.44275695,228.66,228.65,6.92859344]
[1733952050911,2.1,228.67,228.65,4.74399344]
[1733952051116,2.1,228.67,228.66,6.92869311]
[1733952051311,2.1,228.67,228.66,44.12247825]
[1733952051610,6.44275695,228.68,228.66,50.20781369]
[1733952051807,6.44275695,228.7,228.68,2.1842]
[1733952052004,2.1,228.69,228.68,2.1842]
[1733952052312,2.1,228.69,228.68,6.92906928]
[1733952052706,2.1,228.69,228.68,13.01440472]
[1733952053712,8.54275695,228.7,228.68,13.01440472]
[1733952054011,8.54275695,228.7,228.69,4.74486928]
[1733952056013,8.54275695,228.7,228.68,8.26953544]
[1733952056213,8.54275695,228.7,228.69,4.74487758]
[1733952057815,8.54275695,228.7,228.69,6.92907758]
[1733952059719,8.54275695,228.7,228.69,4.74487758]
[1733952059921,2.1,228.7,228.69,4.74487758]
[1733952060122,2.1,228.7,228.69,48.02106485]
[1733952060420,2.1,228.7,228.69,13.01441302]
[1733952060822,6.44275695,228.71,228.69,50.20489157]
[1733952061011,8.54275695,228.71,228.7,4.74487758]
[1733952062517,2.1,228.71,228.7,6.92897758]
[1733952062723,2.1,228.75,228.7,23.71428166]
[1733952063018,2.1,228.75,228.72,6.08122132]
[1733952063213,2.1,228.75,228.72,2.1839]
[1733952063419,6.44275695,228.74,228.72,2.1839]
[1733952063813,2.1,228.75,228.73,2.1839]
[1733952064013,8.54275695,228.76,228.71,6.08122132]
[1733952064213,8.54275695,228.76,228.72,4.74041921]
[1733952064512,8.54275695,228.76,228.71,6.08122132]
[1733952065525,8.54275695,228.76,228.7,24.32488528]
[1733952065714,8.54275695,228.76,228.71,10.81882412]
[1733952065921,8.54275695,228.76,228.71,6.08122132]
[1733952066114,2.1,228.76,228.71,2.184]
[1733952066318,6.44275695,228.72,228.7,6.08122132]
[1733952066513,6.44275695,228.72,228.69,24.32488528]
[1733952066713,6.44275695,228.72,228.7,4.73657884]
[1733952066919,6.44275695,228.72,228.69,24.32488528]
[1733952067122,6.44275695,228.72,228.7,4.73657908]
[1733952067322,6.44275695,228.72,228.69,24.32488528]
[1733952067521,6.44275695,228.72,228.7,4.73589466]
[1733952067724,6.44275695,228.72,228.71,2.184]
[1733952068418,6.44275695,228.74,228.71,2.184]
[1733952069821,6.44275695,228.74,228.72,2.1839]
[1733952074022,6.44275695,228.74,228.71,2.184]
[1733952075726,6.44275695,228.74,228.72,2.55248297]
[1733952075923,6.44275695,228.74,228.73,2.55248297]
[1733952076622,8.62655695,228.74,228.73,2.55248297]
[1733952080528,8.62655695,228.74,228.71,2.184]
[1733952080732,8.62655695,228.74,228.72,2.55217486]
[1733952080931,8.62655695,228.74,228.73,2.55217486]
[1733952082430,2.1842,228.69,228.68,24.32488528]
[1733952082627,8.62695695,228.69,228.68,10.81946517]
[1733952083129,8.62695695,228.69,228.66,6.08122132]
[1733952083130,2.1844,228.67,228.66,6.08122132]
[1733952083331,8.62715695,228.67,228.66,10.82110203]
[1733952083728,8.62715695,228.67,228.66,4.73988071]
[1733952085837,8.62715695,228.67,228.66,10.82110203]
[1733952086038,8.62715695,228.67,228.66,4.73988071]
[1733952086237,8.62715695,228.67,228.66,10.82110203]
[1733952086537,8.62715695,228.67,228.66,4.73988071]
[1733952086730,8.62715695,228.67,228.66,10.82110203]
[1733952087341,8.62715695,228.67,228.66,4.73988071]
[1733952089144,8.62715695,228.67,228.66,10.82110203]
[1733952089640,6.44275695,228.69,228.66,10.82110203]
[1733952089837,8.54275695,228.69,228.66,6.08122132]
[1733952090141,8.54275695,228.69,228.66,8.26572132]
[1733952090541,8.54275695,228.69,228.67,4.74055946]
[1733952090740,8.54275695,228.69,228.66,8.26572132]
[1733952090939,8.54275695,228.69,228.67,4.74055078]
[1733952091139,8.54275695,228.69,228.66,8.26572132]
[1733952091339,4.2842,228.69,228.66,2.1845]
[1733952091538,6.44275695,228.72,228.67,10.82154444]
[1733952091746,8.54275695,228.72,228.69,2.1842]
[1733952092042,8.54275695,228.72,228.69,8.26542132]
[1733952092438,6.44275695,228.72,228.7,4.74011987]
[1733952092644,2.1,228.73,228.71,2.184]
[1733952092838,2.1,228.73,228.7,6.08122132]